Cogmind - Beta 13 @@@ ROGUE MODE // 2024.04.06 @ 16:28:38 Player: Gertrude Result: Destroyed by C-40 Crusher with Compactor Performance ------------- Evolutions (3) 1500 Regions Visited (6) 1200 Robots Destroyed (39) 195 Value Destroyed (1213) 1213 Prototype IDs (2) 40 Alien Tech Used (0) 0 Bonus (260) 260 TOTAL SCORE: 4408 Bonus ------- Pacifist 200 Follower Combat Kills 60 Cogmind --------- Core Integrity 0/700 Matter 225/300 Energy 100/100 System Corruption 17% Temperature Cool (0) Movement Core (50) Location -7/Waste Parts ------- > --- POWER (1) -------- (None) > --- PROPULSION (4) --- (None) > --- UTILITY (5) ------ (None) > --- WEAPON (3) ------- (None) > --- INVENTORY (5) ---- Microactuators Peak State ------------ > --- POWER ------------ Ion Engine > --- PROPULSION ------- Armored Treads Heavy Treads > --- UTILITY ---------- Active Sensor Suite Heavy Armor Plating > --- WEAPON ----------- Beamcaster Katana Katana > --- INVENTORY -------- Microactuators Mining Laser Katana [Rating: 60] Favorites ----------- Power Ion Engine Engine Ion Engine Propulsion Armored Treads Treads Armored Treads Wheel Compact Wheel Flight Unit Improved Flight Unit Utility Small Storage Unit Device Active Sensor Suite Storage Small Storage Unit Processor Signal Interpreter Protection Light Armor Plating Weapon Katana Energy Gun Beam Rifle Ballistic Gun Assault Rifle Special Weapon Mining Laser Slashing Weapon Katana Build | -11 -10 -10 -9 -8 -7 -7 ------- Run | Yrd Mat Min Mat Mat Fac Was Slots Evolved 6 | . . . 2 2 2 . Power . | . . . . . . . Propulsion 2 | . . . 1 1 . . Utility 3 | . . . 1 . 2 . Weapon 1 | . . . . 1 . . Parts Attached 54 | 6 1 2 24 14 1 6 Power 8 | 1 . . 2 4 . 1 Engine 8 | 1 . . 2 4 . 1 Core . | . . . . . . . Reactor . | . . . . . . . Propulsion 19 | 2 . . 11 5 . 1 Treads 9 | . . . 3 5 . 1 Leg . | . . . . . . . Wheel 7 | 2 . . 5 . . . Hover . | . . . . . . . Flight 3 | . . . 3 . . . Utility 7 | 1 1 . 2 2 1 . Device 2 | . . . 1 1 . . Storage 1 | 1 . . . . . . Processor 1 | . 1 . . . . . Hackware . | . . . . . . . Protection 3 | . . . 1 1 1 . Artifact . | . . . . . . . Weapon 20 | 2 . 2 9 3 . 4 Energy Gun 6 | . . 1 4 . . 1 Energy Cannon . | . . . . . . . Ballistic Gun 5 | 2 . . 3 . . . Ballistic Cannon . | . . . . . . . Launcher . | . . . . . . . Special Weapon 2 | . . 1 . . . 1 Impact Weapon . | . . . . . . . Slashing Weapon 7 | . . . 2 3 . 2 Piercing Weapon . | . . . . . . . Special Melee Weapon . | . . . . . . . Unidentified Prototypes 2 | . . . 1 1 . . Parts Lost 25 | . . . 7 10 . 8 Power 2 | . . . 1 1 . . Propulsion 9 | . . . 3 4 . 2 Utility 7 | . . . 1 4 . 2 Weapon 7 | . . . 2 1 . 4 Highest Loss Streak 8 | . . . 3 8 . 7 To Critical Strikes 4 | . . . . 1 . 3 Average Slot Usage (%) 86 | . 90 100 90 88 76 50 Engine 9 | . 14 14 10 8 7 3 Treads 16 | . . . 9 32 30 15 Wheel 9 | . 28 28 12 . . . Flight 4 | . . . 8 . . . Device 2 | . . . 3 . 7 5 Storage 8 | . 14 14 11 7 . . Processor 8 | . 4 14 11 7 . . Protection 3 | . . . 1 4 7 5 Energy Gun 6 | . . 4 12 . . . Ballistic Gun 2 | . 28 9 2 . . . Special Weapon 1 | . . 14 . . . . Slashing Weapon 12 | . . . 5 26 23 18 Naked Turns 16 | . . . . . . 16 Heaviest Build 40 | 13 13 14 19 25 40 40 Greatest Support 90 | 32 32 32 60 80 80 90 Greatest Overweight (x) 2 | . . . 2 . . 1 Average Overweight (x) . | . . . . . . . Largest Inventory Capacity 8 | 8 8 8 8 8 5 5 Average Capacity 7 | 6 8 8 8 7 5 5 Most Carried 8 | 4 1 2 8 7 3 5 Average Carried 4 | . . 1 5 5 2 2 Final Capacity 8 | 8 8 8 8 5 5 5 Final Carried 7 | . . 2 7 4 3 1 Class Distribution -------------------- 83% | Mutant 11% | Scavenger-Assassin 5% | Assassin Dominant Class ---------------- Mutant | -10/Materials Mutant | -10/Mines Mutant | -9/Materials Mutant | -8/Materials Scavenger-Assassin | -7/Factory Assassin | -7/Waste Resources | -11 -10 -10 -9 -8 -7 -7 ----------- Run | Yrd Mat Min Mat Mat Fac Was Matter Collected 669 | 198 . 101 255 115 . . Remotely . | . . . . . . . Salvage Created 1845 | . . . 997 558 . 290 Parts 94 | . . . 55 34 . 5 Haulers Intercepted 3 | . . . 3 . . . Recyclers Shooed . | . . . . . . . Parts Field Recycled . | . . . . . . . Retrieved Matter . | . . . . . . . Parts Self-Destructed . | . . . . . . . Prevented . | . . . . . . . Kills | -11 -10 -10 -9 -8 -7 -7 ------- Run | Yrd Mat Min Mat Mat Fac Was Combat Hostiles Destroyed 34 | . . . 23 10 . 1 Melee 16 | . . . 5 10 . 1 Guns 17 | . . . 17 . . . Classes Destroyed 10 | . . . 6 3 . 1 Hauler 3 | . . . 3 . . . Recycler 1 | . . . 1 . . . Watcher 1 | . . . 1 . . . Swarmer 10 | . . . 10 . . . Grunt 9 | . . . 6 3 . . Sentry 9 | . . . 7 2 . . Specialist 2 | . . . . 2 . . Hunter 2 | . . . . 2 . . Heavy 1 | . . . . 1 . . Compactor 1 | . . . . . . 1 Best Kill Streak 5 | . . . 5 3 . 1 Combat Bots Only 4 | . . . 4 3 . 1 Max Kills in Single Turn 1 | . . . 1 1 . 1 Gunslinging . | . . . . . . . Exploded . | . . . . . . . Melee 1 | . . . 1 1 . 1 Uniques/NPCs Destroyed . | . . . . . . . Combat | -11 -10 -10 -9 -8 -7 -7 -------- Run | Yrd Mat Min Mat Mat Fac Was Hostile Shots Fired 329 | . 7 . 145 140 . 37 Missed 69 | . 5 . 31 32 . 1 Damage Taken 4794 | . 25 . 1298 1867 . 1604 Core 1426 | . . . 309 395 . 722 Absorbed by Shields . | . . . . . . . Core Remaining (%) 62 | 100 . 100 22 28 . . Volleys Fired 76 | . . 3 65 . . 8 Largest 2 | . . 1 2 . . 1 Hottest 121 | . . 20 121 . . 75 Shots Fired 118 | . . 3 107 . . 8 Gun 118 | . . 3 107 . . 8 Cannon . | . . . . . . . Launcher . | . . . . . . . Special . | . . . . . . . Kinetic 20 | . . 3 17 . . . Thermal 98 | . . . 90 . . 8 Explosive . | . . . . . . . Electromagnetic . | . . . . . . . Robot Hit Streak 13 | . . 2 13 . . 4 Robot Miss Streak 4 | . . 1 4 . . 1 Penetration Max . | . . . . . . . Secondary Targets 1 | . . . 1 . . . Max Gunslinging Chain 1 | . . . 1 . . . Shots Hit Robots 163 | . . 2 88 49 . 24 Core Hits 57 | . . . 34 17 . 6 Critical Kills . | . . . . . . . Critical Parts Destroyed . | . . . . . . . Critical Strikes 18 | . . . 13 5 . . Burn 9 | . . . 9 . . . Sever 9 | . . . 4 5 . . Melee Attacks 123 | . . . 36 68 . 19 Impact . | . . . . . . . Slashing 123 | . . . 36 68 . 19 Piercing . | . . . . . . . Sneak Attacks 3 | . . . 3 . . . Combat Hostiles . | . . . . . . . Follow-up Attacks 25 | . . . 7 15 . 3 Damage Inflicted 3548 | . . 27 1730 1389 . 402 Guns 1120 | . . 27 948 . . 145 Cannons . | . . . . . . . Explosions . | . . . . . . . Melee 2428 | . . . 782 1389 . 257 Ramming . | . . . . . . . Kinetic 149 | . . 27 122 . . . Thermal 971 | . . . 826 . . 145 Explosive . | . . . . . . . Electromagnetic . | . . . . . . . Impact . | . . . . . . . Slashing 2428 | . . . 782 1389 . 257 Piercing . | . . . . . . . Highest Corruption 17 | . . . . . . 17 Average Corruption 12 | . . . . . . 12 Corruption Purged . | . . . . . . . Corruption Blocked . | . . . . . . . Effects 8 | . . . . . . 8 Message Errors 1 | . . . . . . 1 Matter Fused 2 | . . . . . . 2 Heat Flow Errors 1 | . . . . . . 1 Energy Discharges 1 | . . . . . . 1 Parts Rejected 1 | . . . . . . 1 Data Loss (minor) 2 | . . . . . . 2 Overload Shots . | . . . . . . . Overflow Damage 85 | . . . 85 . . . Projectiles . | . . . . . . . Explosions . | . . . . . . . Melee 85 | . . . 85 . . . Knockbacks . | . . . . . . . Impact . | . . . . . . . Kinetic . | . . . . . . . Secondary . | . . . . . . . Self-Inflicted Damage . | . . . . . . . Shots . | . . . . . . . Rammed . | . . . . . . . Targets Rammed . | . . . . . . . Kicked . | . . . . . . . Crushed . | . . . . . . . Highest Temperature 330 | . . . 330 2 . 264 Average Temperature 112 | . . . 114 2 . 101 Received Heat Transfer 669 | . 9 . 363 297 . . Effects 4 | . . . 4 . . . Interference 4 | . . . 4 . . . Siege Activations . | . . . . . . . Robots Corrupted . | . . . . . . . Combat Hostiles . | . . . . . . . Parts Fried . | . . . . . . . Impact Corruptions . | . . . . . . . Robots Melted 1 | . . . 1 . . . Combat Hostiles 1 | . . . 1 . . . Parts Melted 12 | . . . 12 . . . Heat Transferred 2997 | . . . 2738 . . 259 Parts Sabotaged . | . . . . . . . Parts Stolen . | . . . . . . . Parts Stripped . | . . . . . . . Power Chain Reactions . | . . . . . . . Alert | -11 -10 -10 -9 -8 -7 -7 ------- Run | Yrd Mat Min Mat Mat Fac Was Peak Influence 398 | . 51 72 398 239 81 28 Initial 149 | . . 19 27 149 81 28 Average 156 | . 20 42 237 135 81 12 Maximum Alert Level 1 | . . . 1 1 . . Low Security (%) 67 | 100 100 100 41 80 100 100 Level 1 32 | . . . 58 19 . . Level 2 . | . . . . . . . Level 3 . | . . . . . . . Level 4 . | . . . . . . . Level 5 . | . . . . . . . High Security . | . . . . . . . Max Security . | . . . . . . . Squads Dispatched 5 | . . . 2 2 1 . Investigation . | . . . . . . . Extermination 1 | . . . . . 1 . Reinforcement 4 | . . . 2 2 . . Assault . | . . . . . . . Garrison . | . . . . . . . Intercept . | . . . . . . . Searches Triggered . | . . . . . . . Construction Impeded . | . . . . . . . Haulers Reinforced . | . . . . . . . Active Scanning Responses . | . . . . . . . Cargo Convoy Interrupts . | . . . . . . . Stealth | -11 -10 -10 -9 -8 -7 -7 --------- Run | Yrd Mat Min Mat Mat Fac Was Distress Signals 4 | . 1 . 3 . . . Communications Jammed . | . . . . . . . Distress Signals . | . . . . . . . Times Spotted 68 | . 7 2 36 18 . 5 Peak Tracking Total 11 | . 6 2 11 5 . 4 Tactical Retreats 9 | . 1 . 4 4 . . Traps | -11 -10 -10 -9 -8 -7 -7 ------- Run | Yrd Mat Min Mat Mat Fac Was Traps Triggered 1 | . . . . . 1 . Indirectly . | . . . . . . . Trap Hack Attempts . | . . . . . . . Triggered . | . . . . . . . Disarmed . | . . . . . . . Reprogrammed . | . . . . . . . Reused . | . . . . . . . Traps Extracted . | . . . . . . . Installed . | . . . . . . . Triggered . | . . . . . . . Machines | -11 -10 -10 -9 -8 -7 -7 ---------- Run | Yrd Mat Min Mat Mat Fac Was Machines Disabled . | . . . . . . . Max in Single Turn . | . . . . . . . Garrison Access 1 | . . . . 1 . . Machines Repaired . | . . . . . . . Machines Dismantled . | . . . . . . . Machines Sabotaged . | . . . . . . . Overloaded Fab Kills . | . . . . . . . Hacking | -11 -10 -10 -9 -8 -7 -7 --------- Run | Yrd Mat Min Mat Mat Fac Was Machines Accessed 15 | . 1 . 10 3 1 . Terminals 12 | . 1 . 9 2 . . Fabricators 1 | . . . . . 1 . Repair Stations 1 | . . . 1 . . . Recycling Units . | . . . . . . . Scanalyzers . | . . . . . . . Garrison Access 1 | . . . . 1 . . Total Hacks 50 | . 2 . 35 11 2 . Successful 21 | . 1 . 13 6 1 . Failed 29 | . 1 . 22 5 1 . Catastrophic 7 | . 1 . 5 . 1 . Database Lockouts . | . . . . . . . Manual 30 | . 2 . 25 3 . . Terminals 42 | . 2 . 33 7 . . Fabricators 2 | . . . . . 2 . Repair Stations 2 | . . . 2 . . . Recycling Units . | . . . . . . . Scanalyzers . | . . . . . . . Garrison Access 4 | . . . . 4 . . Terminal Hacks 19 | . 1 . 13 5 . . Record 1 | . . . 1 . . . Alert Level 6 | . . . 4 2 . . Unreport Threat 2 | . . . 1 1 . . Locate Traps 2 | . . . 2 . . . Transport Status 2 | . . . 1 1 . . Reinforcement Status 1 | . . . 1 . . . Recall Reinforcements 1 | . . . 1 . . . Hauler Manifests 1 | . . . . 1 . . Zone Layout 3 | . 1 . 2 . . . Fabricator Hacks 1 | . . . . . 1 . Network Status 1 | . . . . . 1 . Repair Station Hacks . | . . . . . . . Recycling Unit Hacks . | . . . . . . . Scanalyzer . | . . . . . . . Garrison Access Hacks 1 | . . . . 1 . . Seal Access 1 | . . . . 1 . . Unauthorized Hacks . | . . . . . . . Terminals . | . . . . . . . Fabricators . | . . . . . . . Repair Stations . | . . . . . . . Recycling Units . | . . . . . . . Scanalyzers . | . . . . . . . Garrison Access . | . . . . . . . Data Cores Recovered . | . . . . . . . Used . | . . . . . . . Hacking Detections 15 | . 1 . 10 3 1 . Full Trace Events . | . . . . . . . Feedback Events . | . . . . . . . Feedback Blocked . | . . . . . . . Robot Schematics Acquired . | . . . . . . . Robots Built . | . . . . . . . Authchips . | . . . . . . . Time . | . . . . . . . Total Robot Build Rating . | . . . . . . . Part Schematics Acquired . | . . . . . . . Parts Built . | . . . . . . . Authchips . | . . . . . . . Time . | . . . . . . . Total Part Build Rating . | . . . . . . . Parts Repaired . | . . . . . . . Time . | . . . . . . . Parts Recycled . | . . . . . . . Recycled Matter . | . . . . . . . Retrieved Matter . | . . . . . . . Retrieved Components . | . . . . . . . Parts Scanalyzed . | . . . . . . . Part Schematics Acquired . | . . . . . . . Parts Damaged . | . . . . . . . Bothacking | -11 -10 -10 -9 -8 -7 -7 ------------ Run | Yrd Mat Min Mat Mat Fac Was Used RIF Installer . | . . . . . . . Robots Hacked . | . . . . . . . Non-combat . | . . . . . . . Combat . | . . . . . . . Robot Hacks Applied . | . . . . . . . Relay Couplers Released . | . . . . . . . Fabnet Peak Effective % . | . . . . . . . Robots Rewired . | . . . . . . . Allies Hacked . | . . . . . . . Hacks Repelled . | . . . . . . . Allies | -11 -10 -10 -9 -8 -7 -7 -------- Run | Yrd Mat Min Mat Mat Fac Was Total Allies 2 | . . 1 . . . 1 Largest Group 1 | . . 1 1 . . 1 Highest-Rated Group 31 | . . 31 31 . . 31 Highest-Rated Ally 31 | . . 31 31 . . 31 Total Orders . | . . . . . . . Ally Attacks 16 | . . 8 3 . . 5 Total Damage 208 | . . 105 20 . . 83 Kills 2 | . . 2 . . . . Allies Corrupted . | . . . . . . . Allies Melted . | . . . . . . . Intel | -11 -10 -10 -9 -8 -7 -7 ------- Run | Yrd Mat Min Mat Mat Fac Was Robot Analysis Total . | . . . . . . . Derelict Logs Recovered 2 | . . 2 . . . . Drone Launches . | . . . . . . . Drone Recoveries . | . . . . . . . Exploration | -11 -10 -10 -9 -8 -7 -7 ------------- Run | Yrd Mat Min Mat Mat Fac Was Turns Passed 2531 | 43 59 204 1194 601 251 179 Spaces Moved 1595 | 35 58 180 878 246 147 51 Core 7 | 7 . . . . . . Treads 581 | . . . 137 246 147 51 Legs . | . . . . . . . Wheels 691 | 28 58 180 425 . . . Hover . | . . . . . . . Flight 316 | . . . 316 . . . Fastest Speed 34 | 50 100 100 34 170 170 160 Average Speed 112 | 90 100 100 87 170 170 171 Slowest Speed 250 | 100 100 100 190 170 170 250 Overloaded Moves . | . . . . . . . Propulsion Burnouts . | . . . . . . . Robots Hopped 1 | . . . 1 . . . Cave-ins Triggered . | . . . . . . . Exploration Rate (%) 26 | 3 18 45 71 18 5 23 Regions Visited 6 Branch Regions 1 Pre-discovered Areas 1 | . . 1 . . . . Known Exits Taken 4 | . 1 1 1 1 . . Unknown Exits Taken 1 | 1 . . . . . . Scrap Searched 1 | . . 1 . . . . Spaces Dug . | . . . . . . . Terrain Destroyed . | . . . . . . . Melee . | . . . . . . . Projectile . | . . . . . . . AOE . | . . . . . . . Terrain Rammed . | . . . . . . . Walls Destroyed . | . . . . . . . Machines Disabled . | . . . . . . . Actions | -11 -10 -10 -9 -8 -7 -7 --------- Run | Yrd Mat Min Mat Mat Fac Was Total 2068 | 46 59 200 1153 351 149 110 Wait 202 | . . 14 127 34 . 27 Move 1588 | 34 57 179 875 245 147 51 Hop 1 | . . . 1 . . . Pick Up 45 | 6 1 2 24 8 1 3 Fast Attach . | . . . . . . . Attach 32 | 6 1 . 9 10 1 5 Detach . | . . . . . . . Swap 22 | . . 2 15 4 . 1 Drop 12 | . . . 10 2 . . Fire 76 | . . 3 65 . . 8 Melee 90 | . . . 27 48 . 15 Ram . | . . . . . . . Kick . | . . . . . . . Crush . | . . . . . . . Escape Stasis . | . . . . . . . Rewire . | . . . . . . . Trap . | . . . . . . . Miscellaneous . | . . . . . . . Route ------- -11/Scrapyard -10/Materials -10/Mines -9/Materials (discovered 4 exits: *Mat x3 / *Min) -8/Materials -7/Factory -7/Waste History --------- Turn | Location | Event 12 | -11/Scrapyard | Discovered new exit (range 16) 44 | -11/Scrapyard | Entered Materials 64 | -10/Materials | Discovered new exit (range 19) 90 | -10/Materials | Identified exit to Mines 103 | -10/Materials | Entered Mines 106 | -10/Mines | Received a Mining Laser from a helpful Derelict 112 | -10/Mines | Met a Derelict bent on vengeance 127 | -10/Mines | Learned location of Storage (-7) 242 | -10/Mines | Learned Materials security intel 294 | -10/Mines | Discovered new exit (range 4) 296 | -10/Mines | Identified exit to Materials 307 | -10/Mines | Entered Materials 307 | -9/Materials | Accompanied by 1 ally 307 | -9/Materials | Evolved 2 slots: Propulsion x1, Utility x1 309 | -9/Materials | Build established: Mutant 412 | -9/Materials | Discovered new exit (range 8) 420 | -9/Materials | Identified exit to Materials 497 | -9/Materials | Discovered new exit (range 8) 505 | -9/Materials | Identified exit to Mines 688 | -9/Materials | Discovered exit to Materials (range 9) 917 | -9/Materials | Core integrity fell below 50% 1105 | -9/Materials | Discovered exit to Materials (range 16) 1195 | -9/Materials | Lost 3 parts (2n1w) 1501 | -9/Materials | Entered another Materials area 1501 | -8/Materials | Evolved 2 slots: Propulsion x1, Weapon x1 1967 | -8/Materials | Discovered new exit (range 5) 1972 | -8/Materials | Identified exit to Factory 2028 | -8/Materials | Core integrity fell below 50% 2067 | -8/Materials | Found Prototype Device 2068 | -8/Materials | Lost 8 parts (1p3n3u1w) 2068 | -8/Materials | Identified Active Sensor Suite 2102 | -8/Materials | Entered Factory 2102 | -7/Factory | Evolved 2 slots: Utility x2 2353 | -7/Factory | Sucked down chute 2353 | -7/Factory | Entered Waste 2354 | -7/Waste | Met a frightened Derelict 2368 | -7/Waste | EMP discharged 2368 | -7/Waste | System corruption reached 10% 2400 | -7/Waste | Spotted C-40 Crusher 2415 | -7/Waste | Crushed by Compactor (1 part destroyed, 1 dropped) 2418 | -7/Waste | Crushed by Compactor (0 parts destroyed, 1 dropped) 2423 | -7/Waste | Destroyed C-40 Crusher 2438 | -7/Waste | Spotted C-40 Crusher 2445 | -7/Waste | Spotted C-40 Crusher 2468 | -7/Waste | EMP discharged 2483 | -7/Waste | Crushed by Compactor (0 parts destroyed, 1 dropped) 2488 | -7/Waste | Crushed by Compactor (0 parts destroyed, 1 dropped) 2500 | -7/Waste | Crushed by Compactor (0 parts destroyed, 1 dropped) 2509 | -7/Waste | Spotted C-40 Crusher 2510 | -7/Waste | Crushed by Compactor (0 parts destroyed, 1 dropped) 2521 | -7/Waste | Core integrity fell below 50% 2526 | -7/Waste | Spotted C-40 Crusher 2529 | -7/Waste | Core integrity fell below 20% 2532 | -7/Waste | Destroyed by C-40 Crusher with Compactor Last Messages --------------- Ion Engine crushed. Critical hit (Destroy). Hvy. Armor Plating destroyed. DPIRY=NMMOZYC#V 7X%ZD=AS25KQVGKVHRY76 Katana follow-up attack on C-40 Crusher. Active Sensor Suite destroyed. Katana follow-up attack on C-40 Crusher. Critical hit (Destroy). Katana destroyed. Katana crushed. Critical hit (Destroy). Katana destroyed. Mining Laser destroyed. Acquired Katana. System corrupted: Matter fused (-6). Katana crushed. Arm. Treads crushed. Critical hit (Destroy). Hvy. Treads destroyed. System corrupted: Component data lost. Map ----- +----------------------------------------------------+ | ???????????????????????????????????????? | | ???????????????????????????????????????? | | ???????????????????????????????????????? | | ???????????????????????????????????????? | | ???????????????????????????????????????? | | ???????????????????????????????????????? | | ???????????????????????????????????????? | | ???????????????????????????????????????? | | ???????????????????????????######??????? | | ???????????????????????????# #??????? | | ???????????????????????????# #??????? | | ???????????????????????????# #??????? | | ???????????????????????????# #??????? | | ?????????????????????????### ####???? | | ?????????????????????????# ! ???? | | ?????????????????????????# ????? | | ?????????????????????????# ?????? | | ?????????????????????????? ??????? | | ???????????????????????????# #??????? | | ?????????????############??# !#??????? | | ?????????????# #??#! !#??????? | | ?????????????# #??# #??????? | | ?????????????# CC #### #??????? | | ?????????????#CCCC CC =#??????? | | ?????????????#CCCC CC #??????? | | ?????????????# @CC #??????? | | ?????????????# #??????? | | ?????????????# #### #??????? | | ?????????????# #??# #??????? | | ?????????????# #??# = #??????? | | ?????????????############??# = #??????? | | ???????????????????????????# #??????? | | ?????????????????????????? #??????? | | ?????????????????????????# #??????? | | ?????????????????????????# #??????? | | ?????????????????????????# #??????? | | ?????????????????????????### #??????? | | ???????????????????????????# #??????? | | ???????????????????????????# #??????? | | ???????????????????????????# #??????? | | ???????????????????????????# #??????? | | ???????????????????????????######??????? | | ???????????????????????????????????????? | | ???????????????????????????????????????? | | ???????????????????????????????????????? | | ???????????????????????????????????????? | | ???????????????????????????????????????? | | ???????????????????????????????????????? | | ???????????????????????????????????????? | | ???????????????????????????????????????? | +----------------------------------------------------+ Best States ------------- Heat Dissipation 38 Energy Generation 16 Energy Capacity 290 Matter Stores 300 Matter Capacity 300 Sight Range 16 Robot Scan Range 20 Terrain Scan Density 10 Armor Coverage 600 Evasion (%) 63 Recoil Reduction 4 Item Schematics ----------------- None Robot Schematics ------------------ None Fabricated ------------ Nothing Alien Tech Used ----------------- None Achievements -------------- I Spy Challenges ------------ None Game ------ Seed ProcessingMicroChip Manual? 0 Play Time 00:33:36 Cumulative 3.8 hours Start 2024.04.06 @ 15:58:08 End 2024.04.06 @ 16:28:38 Sessions 1 Manual Loads 0 Difficulty Rogue Special Mode None Game No. 13 Rogue 13 Adventurer 0 Explorer 0 Win Type - Total 0 Types 0/0/0/0/0/0/0/0/0 Lore% 4 Gallery% 11 Achievement% 12 Wizard Run 0 Options --------- Layout 1 ASCII 0 Keyboard 0 Movement Mouse Keybinds 0 Fullscreen 1 Font 24/Smallcaps Map View 50x35 Zoom Use 0% Tactical HUD 0 Map Filters NONE Filters NONE Steam 1 RUN: 96dee005-b2cb-4169-bf9f-9dc284db1d78